[Event "44th Chess Olympiad Open 2022"]
[Site "Chennai"]
[Date "2022.07.29"]
[Round "1.84"]
[White "Tapia Ostolaza, Alexei"]
[Black "Enemchukwu Chinedu Benjamin"]
[Result "1-0"]
[WhiteElo "2201"]
[BlackElo "1889"]
[Annotator "ChessBase"]
[PlyCount "103"]
[EventDate "2022.??.??"]
[TimeControl "60"]

1. Nf3 {[%emt 0:00:05]} d5 {[%emt 0:00:35]} 2. g3 {[%emt 0:00:22]} c5 {[%emt 0:
00:00]} 3. Bg2 {[%emt 0:00:26]} Nc6 {[%emt 0:00:09]} 4. d4 {[%emt 0:00:26]} Nf6
{[%emt 0:00:54]} 5. O-O {[%emt 0:00:38]} cxd4 {[%emt 0:00:25]} 6. Nxd4 {
[%emt 0:00:17]} e6 {[%emt 0:00:12]} 7. c4 {[%emt 0:01:16]} Be7 {[%emt 0:00:24]}
8. Nc3 {[%emt 0:02:56]} O-O {[%emt 0:00:16]} 9. cxd5 {[%emt 0:01:34]} exd5 {
[%emt 0:00:25]} 10. Bf4 {[%emt 0:04:29]} a6 {[%emt 0:01:17]} 11. Rc1 {[%emt 0:
00:00]} Be6 {[%emt 0:09:03]} 12. Nxc6 {[%emt 0:04:21]} bxc6 {[%emt 0:00:18]}
13. Na4 {[%emt 0:00:43]} Rc8 {[%emt 0:02:00]} 14. Nc5 {[%emt 0:04:21]} Bxc5 {
[%emt 0:00:35]} 15. Rxc5 {[%emt 0:00:04]} Qb6 {[%emt 0:01:08]} 16. Qc1 {
[%emt 0:09:03]} Nd7 {[%emt 0:00:43]} 17. Rc2 {[%emt 0:01:24]} c5 {[%emt 0:00:
00]} 18. Rd1 {[%emt 0:02:04]} d4 {[%emt 0:04:19]} 19. Rxd4 {[%emt 0:06:30]}
cxd4 {[%emt 0:05:31]} 20. Rxc8 {[%emt 0:00:12]} Rxc8 {[%emt 0:00:14]} 21. Qxc8+
{[%emt 0:00:05]} Nf8 {[%emt 0:00:14]} 22. Qa8 {[%emt 0:08:54]} Bxa2 {[%emt 0:
00:00]} 23. Bc6 {[%emt 0:10:25]} Qc5 {[%emt 0:04:57]} 24. Qxa6 {[%emt 0:01:54]}
Bc4 {[%emt 0:07:11]} 25. Bd6 {[%emt 0:06:25]} Bxa6 {[%emt 0:01:52]} 26. Bxc5 {
[%emt 0:00:08]} Ne6 {[%emt 0:00:12]} 27. Bb6 {[%emt 0:00:39]} Bxe2 {[%emt 0:00:
00]} 28. f4 {[%emt 0:00:21]} g6 {[%emt 0:02:23]} 29. Bd5 {[%emt 0:01:21]} d3 {
[%emt 0:02:28]} 30. Kf2 {[%emt 0:01:00]} Kf8 {[%emt 0:00:21]} 31. Ke3 {[%emt 0:
00:00]} Ke7 {[%emt 0:00:31]} 32. Be4 {[%emt 0:01:32]} Kd6 {[%emt 0:03:18]} 33.
b4 {[%emt 0:02:12]} f5 {[%emt 0:01:28]} 34. Bb7 {[%emt 0:02:01]} Bf1 {[%emt 0:
00:00]} 35. Bc8 {[%emt 0:07:18]} Kd5 {[%emt 0:02:00]} 36. Kd2 {[%emt 0:02:25]}
Kd6 {[%emt 0:01:17]} 37. Ba6 {[%emt 0:03:01]} Kd5 {[%emt 0:03:05]} 38. Bxd3 {
[%emt 0:03:29]} Bxd3 {[%emt 0:00:52]} 39. Kxd3 {[%emt 0:00:02]} Kc6 {[%emt 0:
00:00]} 40. Be3 {[%emt 0:01:16]} Kb5 {[%emt 0:01:16]} 41. Bd2 {[%emt 0:30:17]}
Kc6 {[%emt 0:35:08]} 42. Kc4 {[%emt 0:00:40]} Nc7 {[%emt 0:00:27]} 43. Be3 {
[%emt 0:00:17]} Ne6 {[%emt 0:06:09]} 44. b5+ {[%emt 0:00:50]} Kd6 {[%emt 0:00:
00]} 45. Bd2 {[%emt 0:00:46]} Nd8 {[%emt 0:01:23]} 46. Bb4+ {[%emt 0:00:23]}
Ke6 {[%emt 0:00:49]} 47. Kc5 {[%emt 0:00:35]} Kd7 {[%emt 0:03:36]} 48. Kd5 {
[%emt 0:00:33]} Nf7 {[%emt 0:02:27]} 49. b6 {[%emt 0:00:29]} h6 {[%emt 0:00:14]
} 50. b7 {[%emt 0:00:43]} Kc7 {[%emt 0:00:37]} 51. Ke6 {[%emt 0:00:14]} Nd8+ {
[%emt 0:01:22]} 52. Kf6 {[%emt 0:00:18]} 1-0

[Event "44th Chess Olympiad Open 2022"]
[Site "Chennai"]
[Date "2022.07.29"]
[Round "1.85"]
[White "Salih, Akar Ali Salih"]
[Black "Bridet, Robert"]
[Result "1-0"]
[WhiteElo "2243"]
[BlackElo "1497"]
[Annotator "RC"]
[PlyCount "55"]
[EventDate "2022.??.??"]
[TimeControl "60"]

1. e4 {[%emt 0:00:05]} e5 {[%emt 0:00:19]} 2. Nf3 {[%emt 0:00:08]} Nc6 {
[%emt 0:00:23]} 3. Bc4 {[%emt 0:00:43]} Bc5 {[%emt 0:00:39]} 4. O-O {[%emt 0:
00:00]} Nf6 {[%emt 0:00:31]} 5. d4 {[%emt 0:00:34]} Bxd4 {[%emt 0:03:30]} 6.
Nxd4 {[%emt 0:02:32]} Nxd4 {[%emt 0:01:37]} 7. Bg5 {[%emt 0:01:14]} h6 {
[%emt 0:01:51]} 8. Bh4 {[%emt 0:00:14]} d6 {[%emt 0:00:40]} 9. f4 {[%emt 0:00:
00]} Be6 {[%emt 0:07:11]} 10. Na3 {[%emt 0:01:58]} Nc6 {[%emt 0:12:45]} 11. Bb5
{[%emt 0:09:10]} exf4 {[%emt 0:06:17]} 12. Rxf4 {[%emt 0:01:54]} g5 {[%emt 0:
00:00]} 13. Qd4 {[%emt 0:01:16]} gxh4 {[%emt 0:06:18]} 14. Bxc6+ {[%emt 0:00:
00]} bxc6 {[%emt 0:01:53]} 15. Rxf6 {[%emt 0:01:47]} Rg8 {[%emt 0:02:02]} 16.
Raf1 {[%emt 0:04:26]} Qd7 {[%emt 0:05:11]} 17. Nc4 {[%emt 0:10:02]} c5 {
[%emt 0:04:25]} 18. Qd3 {[%emt 0:02:46]} Rg4 {[%emt 0:07:20]} 19. Ne3 {[%emt 0:
00:00]} Rg5 {[%emt 0:01:48]} 20. Nd5 {[%emt 0:12:44]} O-O-O {[%emt 0:10:36]}
21. Qa6+ {[%emt 0:01:59]} Kb8 {[%emt 0:00:00]} 22. R1f3 {[%emt 0:00:57]} c4 {
[%emt 0:02:24]} 23. Qxc4 {[%emt 0:06:14]} c6 {[%emt 0:03:46]} 24. Qb4+ {
[%emt 0:02:01]} Ka8 {[%emt 0:00:49]} 25. Nb6+ {[%emt 0:01:33]} axb6 {[%emt 0:
00:00]} 26. Qxb6 {[%emt 0:00:07]} Rxg2+ {[%emt 0:02:03]} 27. Kxg2 {[%emt 0:00:
00]} Rg8+ {[%emt 0:04:26]} 28. Kf2 {[%emt 0:00:12]} 1-0

[Event "44th Chess Olympiad Open 2022"]
[Site "Chennai"]
[Date "2022.07.29"]
[Round "1.85"]
[White "Rabeea, Sabah Nori"]
[Black "Thomas, Larry"]
[Result "1-0"]
[WhiteElo "2122"]
[BlackElo "1317"]
[Annotator "NA"]
[PlyCount "60"]
[EventDate "2022.??.??"]
[TimeControl "60"]

1. d4 {[%emt 0:00:00]} Nf6 {[%emt 0:00:07]} 2. Nf3 {[%emt 0:00:00]} g6 {
[%emt 0:00:44]} 3. c4 {[%emt 0:00:00]} d6 {[%emt 0:04:20]} 4. Nc3 {[%emt 0:00:
00]} Bg7 {[%emt 0:01:33]} 5. e4 {[%emt 0:00:17]} Bg4 {[%emt 0:03:03]} 6. Be2 {
[%emt 0:03:53]} c6 {[%emt 0:05:32]} 7. Be3 {[%emt 0:05:17]} Qc7 {[%emt 0:04:00]
} 8. e5 {[%emt 0:05:49]} Nfd7 {[%emt 0:05:12]} 9. exd6 {[%emt 0:00:38]} exd6 {
[%emt 0:00:55]} 10. h3 {[%emt 0:00:25]} Bxf3 {[%emt 0:01:57]} 11. Bxf3 {
[%emt 0:00:13]} Nf6 {[%emt 0:04:22]} 12. Qd2 {[%emt 0:01:31]} Nbd7 {[%emt 0:00:
00]} 13. Bf4 {[%emt 0:01:13]} O-O {[%emt 0:04:18]} 14. O-O-O {[%emt 0:10:57]}
Rfe8 {[%emt 0:01:53]} 15. h4 {[%emt 0:01:40]} h5 {[%emt 0:05:02]} 16. Rdg1 {
[%emt 0:03:31]} Re6 {[%emt 0:21:04]} 17. c5 {[%emt 0:01:34]} Ne8 {[%emt 0:00:
00]} 18. g4 {[%emt 0:00:48]} Qa5 {[%emt 0:03:13]} 19. gxh5 {[%emt 0:03:11]}
dxc5 {[%emt 0:03:21]} 20. d5 {[%emt 0:02:19]} Bxc3 {[%emt 0:03:04]} 21. bxc3 {
[%emt 0:03:35]} Qa3+ {[%emt 0:00:23]} 22. Kb1 {[%emt 0:01:02]} cxd5 {[%emt 0:
00:00]} 23. Bxd5 {[%emt 0:00:12]} Rb6+ {[%emt 0:00:45]} 24. Ka1 {[%emt 0:00:19]
} Ndf6 {[%emt 0:06:17]} 25. Rxg6+ {[%emt 0:03:03]} Kh7 {[%emt 0:01:32]} 26.
Rh6+ {[%emt 0:00:05]} Kg8 {[%emt 0:01:17]} 27. Rg1+ {[%emt 0:00:15]} Ng7 {
[%emt 0:00:03]} 28. Be5 {[%emt 0:02:25]} Qa6 {[%emt 0:02:08]} 29. Qg5 {[%emt 0:
00:00]} Rb1+ {[%emt 0:00:00]} 30. Kxb1 {[%emt 0:00:00]} Qd3+ {[%emt 0:00:00]}
1-0

[Event "44th Chess Olympiad Open 2022"]
[Site "Chennai"]
[Date "2022.07.29"]
[Round "1.86"]
[White "Khusenkhojaev, Muhammad"]
[Black "Christopher, Art"]
[Result "1-0"]
[WhiteElo "2397"]
[BlackElo "1616"]
[Annotator "RC"]
[PlyCount "65"]
[EventDate "2022.??.??"]
[TimeControl "60"]

1. Nf3 {[%emt 0:00:11]} d5 {[%emt 0:00:36]} 2. d4 {[%emt 0:00:08]} e6 {[%emt 0:
00:00]} 3. c4 {[%emt 0:00:07]} c5 {[%emt 0:02:30]} 4. cxd5 {[%emt 0:00:16]}
exd5 {[%emt 0:01:52]} 5. g3 {[%emt 0:00:07]} Nf6 {[%emt 0:01:18]} 6. Bg2 {
[%emt 0:00:07]} Nc6 {[%emt 0:03:22]} 7. O-O {[%emt 0:00:10]} c4 {[%emt 0:01:21]
} 8. Ne5 {[%emt 0:01:32]} Be6 {[%emt 0:04:06]} 9. Nc3 {[%emt 0:01:12]} Qc7 {
[%emt 0:04:25]} 10. Bf4 {[%emt 0:01:37]} Qb6 {[%emt 0:05:00]} 11. Nxc6 {
[%emt 0:04:03]} Qxc6 {[%emt 0:10:36]} 12. b3 {[%emt 0:04:21]} Bb4 {[%emt 0:00:
00]} 13. Rc1 {[%emt 0:02:02]} b5 {[%emt 0:01:39]} 14. Be5 {[%emt 0:01:33]} Bxc3
{[%emt 0:01:34]} 15. Rxc3 {[%emt 0:00:07]} Rg8 {[%emt 0:12:02]} 16. bxc4 {
[%emt 0:03:20]} bxc4 {[%emt 0:00:22]} 17. Bxf6 {[%emt 0:00:15]} gxf6 {[%emt 0:
00:00]} 18. Qb1 {[%emt 0:00:06]} Kd7 {[%emt 0:02:41]} 19. e4 {[%emt 0:01:21]}
Rab8 {[%emt 0:04:14]} 20. exd5 {[%emt 0:00:15]} Bxd5 {[%emt 0:01:42]} 21. Qf5+
{[%emt 0:00:15]} Qe6 {[%emt 0:01:21]} 22. Qxd5+ {[%emt 0:00:09]} Qxd5 {[%emt 0:
00:00]} 23. Bxd5 {[%emt 0:00:11]} Ke7 {[%emt 0:11:36]} 24. Re1+ {[%emt 0:05:19]
} Kf8 {[%emt 0:00:42]} 25. Rxc4 {[%emt 0:00:23]} Kg7 {[%emt 0:01:20]} 26. Rc7 {
[%emt 0:00:07]} Rgf8 {[%emt 0:00:15]} 27. Ree7 {[%emt 0:00:07]} Rbe8 {[%emt 0:
00:00]} 28. Rxe8 {[%emt 0:03:22]} Rxe8 {[%emt 0:01:59]} 29. Rxf7+ {[%emt 0:00:
00]} Kh6 {[%emt 0:00:09]} 30. Rxf6+ {[%emt 0:00:08]} Kg5 {[%emt 0:00:19]} 31.
Rf7 {[%emt 0:00:09]} Rd8 {[%emt 0:00:06]} 32. Bb3 {[%emt 0:00:09]} Rxd4 {
[%emt 0:00:14]} 33. Rxa7 {[%emt 0:00:05]} 1-0

[Event "44th Chess Olympiad Open 2022"]
[Site "Chennai"]
[Date "2022.07.29"]
[Round "1.87"]
[White "Senglek, Khonsavanh"]
[Black "Lee, Jun Hyeok"]
[Result "0-1"]
[WhiteElo "1253"]
[BlackElo "2390"]
[Annotator "RC"]
[PlyCount "96"]
[EventDate "2022.??.??"]
[TimeControl "60"]

1. e4 {[%emt 0:00:05]} e5 {[%emt 0:00:29]} 2. Nf3 {[%emt 0:01:31]} d5 {[%emt 0:
00:00]} 3. exd5 {[%emt 0:01:37]} Bd6 {[%emt 0:00:39]} 4. Bb5+ {[%emt 0:00:47]}
c6 {[%emt 0:01:58]} 5. dxc6 {[%emt 0:02:19]} bxc6 {[%emt 0:00:19]} 6. Bc4 {
[%emt 0:01:19]} e4 {[%emt 0:01:24]} 7. Nd4 {[%emt 0:01:55]} Qg5 {[%emt 0:02:51]
} 8. Bf1 {[%emt 0:05:39]} Qe5 {[%emt 0:04:38]} 9. Nb3 {[%emt 0:03:02]} Nf6 {
[%emt 0:00:22]} 10. h3 {[%emt 0:00:58]} O-O {[%emt 0:00:55]} 11. Nc3 {[%emt 0:
00:00]} a5 {[%emt 0:03:34]} 12. a4 {[%emt 0:04:04]} Na6 {[%emt 0:02:05]} 13.
Na2 {[%emt 0:06:03]} Rd8 {[%emt 0:11:30]} 14. Qe2 {[%emt 0:06:48]} Be6 {
[%emt 0:18:40]} 15. d4 {[%emt 0:04:44]} exd3 {[%emt 0:03:39]} 16. Qxe5 {
[%emt 0:07:26]} Bxe5 {[%emt 0:00:07]} 17. Nxa5 {[%emt 0:03:28]} Bxa2 {[%emt 0:
00:00]} 18. Bxd3 {[%emt 0:16:29]} Bd5 {[%emt 0:07:38]} 19. O-O {[%emt 0:01:13]}
Nb4 {[%emt 0:08:08]} 20. Nb7 {[%emt 0:00:29]} Rdb8 {[%emt 0:01:36]} 21. Nc5 {
[%emt 0:03:35]} Bd6 {[%emt 0:02:33]} 22. Be3 {[%emt 0:04:01]} Bxc5 {[%emt 0:00:
00]} 23. Bxc5 {[%emt 0:01:47]} Nxd3 {[%emt 0:00:07]} 24. cxd3 {[%emt 0:00:14]}
Rxb2 {[%emt 0:00:29]} 25. a5 {[%emt 0:00:20]} Rb5 {[%emt 0:01:48]} 26. Bb6 {
[%emt 0:00:39]} Nd7 {[%emt 0:00:11]} 27. Bc7 {[%emt 0:00:16]} f6 {[%emt 0:00:
00]} 28. Rfe1 {[%emt 0:02:19]} Kf7 {[%emt 0:02:20]} 29. a6 {[%emt 0:00:18]} Ra7
{[%emt 0:05:35]} 30. Bd6 {[%emt 0:00:36]} Nc5 {[%emt 0:00:59]} 31. Ra3 {
[%emt 0:03:39]} Nxa6 {[%emt 0:02:25]} 32. Rea1 {[%emt 0:00:18]} Rd7 {[%emt 0:
00:00]} 33. Bf4 {[%emt 0:04:49]} Nc5 {[%emt 0:00:12]} 34. d4 {[%emt 0:00:38]}
Ne6 {[%emt 0:00:27]} 35. Be3 {[%emt 0:00:16]} f5 {[%emt 0:00:12]} 36. g3 {
[%emt 0:00:21]} Rdb7 {[%emt 0:00:25]} 37. Ra7 {[%emt 0:01:21]} Rxa7 {[%emt 0:
00:00]} 38. Rxa7+ {[%emt 0:00:16]} Kf6 {[%emt 0:00:06]} 39. Ra1 {[%emt 0:02:30]
} g5 {[%emt 0:00:20]} 40. f4 {[%emt 0:01:44]} Rb2 {[%emt 0:01:07]} 41. fxg5+ {
[%emt 0:32:22]} Nxg5 {[%emt 0:30:06]} 42. Bxg5+ {[%emt 0:01:03]} Kxg5 {[%emt 0:
00:00]} 43. Ra7 {[%emt 0:01:00]} Rg2+ {[%emt 0:00:20]} 44. Kf1 {[%emt 0:00:18]}
Rxg3 {[%emt 0:00:10]} 45. Rxh7 {[%emt 0:00:16]} Kf4 {[%emt 0:00:07]} 46. h4 {
[%emt 0:00:31]} Ke3 {[%emt 0:00:25]} 47. h5 {[%emt 0:01:06]} Bc4+ {[%emt 0:00:
00]} 48. Ke1 {[%emt 0:00:17]} Rg1# {[%emt 0:00:06]} 0-1

[Event "44th Chess Olympiad Open 2022"]
[Site "Chennai"]
[Date "2022.07.29"]
[Round "1.89"]
[White "Ihsan Mohamed N T"]
[Black "Verdier, Patrice"]
[Result "0-1"]
[WhiteElo "1208"]
[BlackElo "2017"]
[Annotator "NA RC"]
[PlyCount "46"]
[EventDate "2022.??.??"]
[TimeControl "60"]

1. e4 {[%emt 0:00:03]} c5 {[%emt 0:00:16]} 2. Nc3 {[%emt 0:00:13]} e6 {[%emt 0:
00:00]} 3. Bd3 {[%emt 0:00:15]} Nc6 {[%emt 0:00:42]} 4. Nf3 {[%emt 0:00:15]}
Nf6 {[%emt 0:01:10]} 5. O-O {[%emt 0:00:15]} d5 {[%emt 0:02:01]} 6. exd5 {
[%emt 0:00:39]} exd5 {[%emt 0:00:09]} 7. Qe1+ {[%emt 0:00:29]} Be7 {[%emt 0:00:
00]} 8. Bb5 {[%emt 0:01:34]} O-O {[%emt 0:00:49]} 9. b3 {[%emt 0:00:23]} Qc7 {
[%emt 0:04:14]} 10. Be2 {[%emt 0:02:04]} a6 {[%emt 0:01:31]} 11. d3 {[%emt 0:
00:00]} h6 {[%emt 0:01:56]} 12. Bd2 {[%emt 0:01:55]} Bf5 {[%emt 0:01:10]} 13.
Qc1 {[%emt 0:00:47]} d4 {[%emt 0:02:24]} 14. Bf4 {[%emt 0:01:21]} Bd6 {[%emt 0:
00:00]} 15. Nd1 {[%emt 0:00:53]} Bxf4 {[%emt 0:00:06]} 16. Qb2 {[%emt 0:00:40]}
Rfe8 {[%emt 0:00:37]} 17. Re1 {[%emt 0:01:24]} Bg4 {[%emt 0:00:31]} 18. Rf1 {
[%emt 0:04:46]} Rxe2 {[%emt 0:00:33]} 19. Qa3 {[%emt 0:01:44]} Bxf3 {[%emt 0:
00:00]} 20. gxf3 {[%emt 0:00:29]} Qe5 {[%emt 0:00:31]} 21. Kg2 {[%emt 0:12:22]}
Qg5+ {[%emt 0:00:11]} 22. Kh3 {[%emt 0:03:28]} Qh5+ {[%emt 0:00:05]} 23. Kg2 {
[%emt 0:04:36]} Qxh2# {[%emt 0:00:06]} 0-1

[Event "44th Chess Olympiad Open 2022"]
[Site "Chennai"]
[Date "2022.07.30"]
[Round "2.1"]
[White "Erigaisi Arjun"]
[Black "Macovei, Andrei"]
[Result "1/2-1/2"]
[WhiteElo "2689"]
[BlackElo "2478"]
[Annotator "TA"]
[PlyCount "91"]
[EventDate "2022.??.??"]
[TimeControl "60"]

{[%evp 9,91,18,19,12,17,17,13,13,18,7,3,-25,-17,-20,-22,-35,-14,-29,-26,-12,
-15,-25,0,0,0,-12,0,0,0,-32,0,-14,0,-14,-14,-14,-14,0,-23,-21,-5,-36,-44,-50,
-37,-43,-52,-101,-81,-127,-136,-144,-146,-156,-148,-167,-85,-73,-69,-72,-72,
-62,-76,-72,-73,-90,-68,-118,-118,-137,-86,-78,-75,-73,-78,-78,0,0,0,0,0,0,0,0]
} 1. e4 {[%emt 0:00:09]} e5 {[%emt 0:01:15]} 2. Nf3 {[%emt 0:00:08]} Nc6 {
[%emt 0:00:05]} 3. Bb5 {[%emt 0:00:06]} Nf6 {[%emt 0:00:17]} 4. d3 {[%emt 0:00:
00]} Bc5 {[%emt 0:00:09]} 5. Bxc6 {[%emt 0:02:45]} dxc6 {[%emt 0:00:05]} 6.
Nbd2 {[%emt 0:00:08] C65: Ruy Lopez: Berlin Defence (3...Nf6), unusual lines
and 4 0-0 Bc5.} Be6 {[%emt 0:07:29]} 7. O-O {[%emt 0:01:03]} Bd6 {[%emt 0:00:
00] The modern move.} 8. b3 {[%emt 0:03:27]} Qe7 {[%emt 0:02:31]} 9. Bb2 {
[%emt 0:02:20]} Nd7 {[%emt 0:00:35] [#]} 10. d4 $146 {[%emt 0:08:55]} ({
Predecessor:} 10. Nc4 Bxc4 11. bxc4 O-O-O 12. Nd2 Nc5 13. a4 a5 14. Bc3 b6 15.
f4 f6 16. f5 {1-0 (69) Sergienko,S (2383)-Zhurikhin,A (2325) Voronezh 2013})
10... f6 {[%emt 0:19:29]} 11. Qe2 {[%emt 0:04:00]} O-O-O {[%emt 0:01:38]} 12.
Rad1 {[%emt 0:14:54]} g5 {[%emt 0:11:26][%cal Yg7g5,Yg5g4]} 13. dxe5 {[%emt 0:
01:29]} fxe5 {[%emt 0:03:29]} 14. Nc4 {[%emt 0:00:17]} Bxc4 {[%emt 0:00:00]}
15. Qxc4 {[%emt 0:00:07]} g4 {[%emt 0:09:22]} 16. Nd2 {[%emt 0:01:41][%cal
Yf3d2,Yd2c4,Yc4e3,Ye3f5]} h5 {[%emt 0:00:45]} 17. Qe2 {[%emt 0:00:00]} Nf8 {
[%emt 0:03:32]} 18. Nc4 {[%emt 0:12:12]} Ne6 {[%emt 0:03:06]} 19. Qe1 {[%emt 0:
20:13]} ({But not} 19. Bxe5 $2 Bxe5 20. Nxe5 Nf4 $19) (19. Qe3 $5 {[%cal Re3a7]
} Bc5 20. Rxd8+ Rxd8 21. Qh6 $11) 19... Bb4 {[%emt 0:09:17] Prevents Qa5.} 20.
c3 {[%emt 0:03:06]} Bd6 {[%emt 0:01:39]} 21. Ne3 {[%emt 0:00:00]} Bc5 {[%emt 0:
01:51]} 22. Nf5 {[%emt 0:02:56]} Qf7 {[%emt 0:01:17]} 23. Bc1 {[%emt 0:00:52]}
Rxd1 {[%emt 0:00:56]} 24. Qxd1 {[%emt 0:00:06]} Rd8 {[%emt 0:00:06][%cal Yh8d8,
Yd8d3,Yd3c3,Yc3c2]} 25. Qc2 {[%emt 0:03:04]} Qd7 {[%emt 0:00:58]} 26. b4 {
[%emt 0:00:59]} Bb6 {[%emt 0:00:26]} 27. g3 {[%emt 0:00:36]} Qd3 {[%emt 0:04:
59]} 28. Qxd3 {[%emt 0:04:03]} (28. Ne7+ $1 $15 {was preferrable.} Kb8 29. Qxd3
Rxd3 30. Ng8) 28... Rxd3 $17 {[%emt 0:00:02]} 29. c4 {[%emt 0:00:01]} (29. Kg2
$142) 29... Bd4 {[%emt 0:01:01]} 30. Kg2 {[%emt 0:01:00]} Rc3 $1 {[%emt 0:02:
56]} 31. c5 {[%emt 0:00:10]} Rc2 {[%emt 0:00:00]} 32. a3 {[%emt 0:00:28]} Bxf2
{[%emt 0:02:15]} 33. Rxf2 {[%emt 0:00:06]} Rxc1 $19 {[%emt 0:00:01] Endgame
KRN-KRN} 34. Ne7+ $1 {[%emt 0:00:00]} Kd8 {[%emt 0:00:10]} 35. Ng6 {[%emt 0:00:
06]} Ng5 $1 {[%emt 0:04:00] Threatens to win with ...Nf3.} 36. Rf8+ {[%emt 0:
02:41]} Kd7 {[%emt 0:00:05] .. .Nh3 is the strong threat.} 37. Nxe5+ {[%emt 0:
00:05]} Ke6 $1 {[%emt 0:00:26]} 38. Re8+ {[%emt 0:01:14]} (38. Nd3 $1 $15 Rc2+
39. Rf2 Rxf2+ 40. Kxf2) 38... Kf6 $17 {[%emt 0:00:05] Hoping for ...Nh3.} 39.
Kf2 {[%emt 0:00:04]} Nxe4+ {[%emt 0:01:25]} ({Black should try} 39... Rc2+ 40.
Ke3 Rxh2 41. Nd7+ Kf7) 40. Ke3 {[%emt 0:00:06] [#]} Ng5 {[%emt 0:02:33] And
now ...Re1+ would win.} 41. Nd3 {[%emt 0:38:36] Prevents Re1+.} Rc2 {[%emt 0:
05:34]} 42. Rf8+ {[%emt 0:00:00] [#]} Ke6 {[%emt 0:03:59]} (42... Nf7 $1 $17
43. Rb8 Rxh2) 43. Nf4+ $11 {[%emt 0:00:00] The position is equal.} Ke5 {
[%emt 0:00:12]} 44. Re8+ {[%emt 0:00:00]} Kf5 {[%emt 0:00:18]} 45. Rf8+ {
[%emt 0:00:00]} Ke5 {[%emt 0:00:04]} 46. Re8+ {[%emt 0:00:00] Weighted Error
Value: White=0.10 (very precise) /Black=0.07 (flawless)} 1/2-1/2